[Event "Titled Tuesday Blitz January 25 2022"]
[White "Hakemi, Arman"]
[Black "Jones, Gawain C B"]
[WhiteFideId "22520805"]
[BlackFideId "409561"]
[WhiteElo "2208"]
[BlackElo "2657"]
[Result "0-1"]
[Round "09"]
[TimeControl "180+1"]
[Date "2022.01.26"]
[WhiteClock "0:01:05"]
[BlackClock "0:02:08"]

1. e4 {[%clk 0:03:00]}  d5 {[%clk 0:03:00]} 2. exd5 {[%clk 0:02:57]}  Qxd5 {[%clk 0:03:00]} 3. Nc3 {[%clk 0:02:57]}  Qd6 {[%clk 0:03:01]} 4. d4 {[%clk 0:02:57]}  Nf6 {[%clk 0:03:01]} 5. Nf3 {[%clk 0:02:58]}  a6 {[%clk 0:02:58]} 6. Bc4 {[%clk 0:02:55]}  b5 {[%clk 0:02:55]} 7. Bb3 {[%clk 0:02:54]}  Bb7 {[%clk 0:02:55]} 8. Qe2 {[%clk 0:02:47]}  e6 {[%clk 0:02:53]} 9. Bg5 {[%clk 0:02:46]}  Nbd7 {[%clk 0:02:53]} 10. O-O-O {[%clk 0:02:39]}  b4 {[%clk 0:02:37]} 11. d5 {[%clk 0:02:40]}  e5 {[%clk 0:02:27]} 12. Ne4 {[%clk 0:02:16]}  Nxe4 {[%clk 0:02:27]} 13. Qxe4 {[%clk 0:02:17]}  Nc5 {[%clk 0:02:19]} 14. Qxe5+ {[%clk 0:02:13]}  Qxe5 {[%clk 0:02:19]} 15. Nxe5 {[%clk 0:02:14]}  f6 {[%clk 0:02:14]} 16. Rhe1 {[%clk 0:01:56]}  Nxb3+ {[%clk 0:02:14]} 17. axb3 {[%clk 0:01:55]}  fxe5 {[%clk 0:02:14]} 18. Rxe5+ {[%clk 0:01:49]}  Kf7 {[%clk 0:02:13]} 19. h4 {[%clk 0:01:30]}  Bd6 {[%clk 0:02:08]} 20. Rf5+ {[%clk 0:01:14]}  Kg6 {[%clk 0:02:08]} 21. g4 {[%clk 0:01:12]}  h6 {[%clk 0:02:08]} 22. h5+ {[%clk 0:01:11]}  Kh7 {[%clk 0:02:08]} 23. Bf4 {[%clk 0:01:09]}  Bc8 {[%clk 0:02:08]} 24. Rf7 {[%clk 0:01:05]}  Kg8 {[%clk 0:02:08]} 0-1


[Site "https://www.chess.com"]

[Event "Titled Tuesday Blitz January 25 2022"]
[White "Dronavalli, Harika"]
[Black "Dastan, Muhammed Batuhan"]
[WhiteFideId "5015197"]
[BlackFideId "6300014"]
[WhiteElo "2382"]
[BlackElo "2410"]
[Result "0-1"]
[Round "09"]
[TimeControl "180+1"]
[Date "2022.01.26"]
[WhiteClock "0:00:17"]
[BlackClock "0:00:19"]

1. d4 {[%clk 0:03:00]}  d5 {[%clk 0:02:57]} 2. c4 {[%clk 0:03:00]}  c6 {[%clk 0:02:57]} 3. Nf3 {[%clk 0:03:00]}  Nf6 {[%clk 0:02:57]} 4. g3 {[%clk 0:02:52]}  dxc4 {[%clk 0:02:57]} 5. Bg2 {[%clk 0:02:52]}  g6 {[%clk 0:02:57]} 6. O-O {[%clk 0:02:51]}  Bg7 {[%clk 0:02:58]} 7. Ne5 {[%clk 0:02:51]}  Ng4 {[%clk 0:02:56]} 8. Nxc4 {[%clk 0:02:23]}  Qxd4 {[%clk 0:02:48]} 9. Qc2 {[%clk 0:02:23]}  Bf5 {[%clk 0:02:44]} 10. Qb3 {[%clk 0:02:11]}  b5 {[%clk 0:02:27]} 11. Na5 {[%clk 0:02:07]}  Qb6 {[%clk 0:02:06]} 12. Bd2 {[%clk 0:02:05]}  O-O {[%clk 0:02:06]} 13. a4 {[%clk 0:01:59]}  bxa4 {[%clk 0:01:39]} 14. Qxa4 {[%clk 0:01:48]}  Qxb2 {[%clk 0:01:26]} 15. Ra2 {[%clk 0:01:42]}  Qd4 {[%clk 0:01:14]} 16. Qa3 {[%clk 0:01:30]}  Bxb1 {[%clk 0:01:08]} 17. e3 {[%clk 0:01:24]}  Qd3 {[%clk 0:01:03]} 18. Qxd3 {[%clk 0:01:09]}  Bxd3 {[%clk 0:01:04]} 19. Rc1 {[%clk 0:01:10]}  Bb5 {[%clk 0:01:03]} 20. Bb4 {[%clk 0:01:04]}  Re8 {[%clk 0:00:59]} 21. Rd2 {[%clk 0:00:54]}  Ne5 {[%clk 0:00:53]} 22. Bc3 {[%clk 0:00:52]}  Nd3 {[%clk 0:00:44]} 23. Rcc2 {[%clk 0:00:47]}  Bxc3 {[%clk 0:00:42]} 24. Rxc3 {[%clk 0:00:48]}  Nb4 {[%clk 0:00:38]} 25. Rb2 {[%clk 0:00:44]}  N8a6 {[%clk 0:00:39]} 26. Nxc6 {[%clk 0:00:40]}  Bxc6 {[%clk 0:00:37]} 27. Bxc6 {[%clk 0:00:40]}  Rac8 {[%clk 0:00:35]} 28. Bxe8 {[%clk 0:00:39]}  Rxc3 {[%clk 0:00:36]} 29. Bb5 {[%clk 0:00:40]}  e6 {[%clk 0:00:29]} 30. Kg2 {[%clk 0:00:40]}  Kg7 {[%clk 0:00:29]} 31. Rb1 {[%clk 0:00:40]}  Rc5 {[%clk 0:00:29]} 32. Bf1 {[%clk 0:00:39]}  f5 {[%clk 0:00:29]} 33. Ra1 {[%clk 0:00:38]}  Rc6 {[%clk 0:00:27]} 34. Ra4 {[%clk 0:00:39]}  Rb6 {[%clk 0:00:27]} 35. h4 {[%clk 0:00:37]}  Kf6 {[%clk 0:00:28]} 36. Be2 {[%clk 0:00:35]}  e5 {[%clk 0:00:28]} 37. Ra5 {[%clk 0:00:34]}  e4 {[%clk 0:00:28]} 38. g4 {[%clk 0:00:34]}  fxg4 {[%clk 0:00:28]} 39. Bxg4 {[%clk 0:00:34]}  Nd3 {[%clk 0:00:29]} 40. Bc8 {[%clk 0:00:32]}  Ndc5 {[%clk 0:00:28]} 41. Kg3 {[%clk 0:00:30]}  Rc6 {[%clk 0:00:29]} 42. Bg4 {[%clk 0:00:29]}  Ke7 {[%clk 0:00:29]} 43. Be2 {[%clk 0:00:30]}  Kd6 {[%clk 0:00:30]} 44. Kf4 {[%clk 0:00:29]}  Kc7 {[%clk 0:00:28]} 45. h5 {[%clk 0:00:26]}  gxh5 {[%clk 0:00:28]} 46. Bxa6 {[%clk 0:00:26]}  Kb6 {[%clk 0:00:22]} 47. Bb5 {[%clk 0:00:17]}  Rf6+ {[%clk 0:00:21]} 48. Kg5 {[%clk 0:00:17]}  Rg6+ {[%clk 0:00:18]} 49. Kxh5 {[%clk 0:00:17]}  Kxa5 {[%clk 0:00:19]} 0-1


[Site "https://www.chess.com"]

[Event "Titled Tuesday Blitz January 25 2022"]
[White "Howell, David W L"]
[Black "Mirzoev, Azer"]
[WhiteFideId "410608"]
[BlackFideId "13400304"]
[WhiteElo "2559"]
[BlackElo "2525"]
[Result "1-0"]
[Round "09"]
[TimeControl "180+1"]
[Date "2022.01.26"]
[WhiteClock "0:00:24"]
[BlackClock "0:00:10"]

1. e4 {[%clk 0:02:55]}  e5 {[%clk 0:02:59]} 2. f4 {[%clk 0:02:50]}  Bc5 {[%clk 0:02:58]} 3. Nf3 {[%clk 0:02:49]}  d6 {[%clk 0:02:57]} 4. c3 {[%clk 0:02:44]}  Nf6 {[%clk 0:02:41]} 5. d4 {[%clk 0:02:43]}  exd4 {[%clk 0:02:40]} 6. cxd4 {[%clk 0:02:41]}  Bb4+ {[%clk 0:02:40]} 7. Bd2 {[%clk 0:02:42]}  Bxd2+ {[%clk 0:02:40]} 8. Nbxd2 {[%clk 0:02:43]}  O-O {[%clk 0:02:40]} 9. Bd3 {[%clk 0:02:42]}  Nh5 {[%clk 0:02:36]} 10. g3 {[%clk 0:02:39]}  c5 {[%clk 0:02:31]} 11. dxc5 {[%clk 0:02:30]}  dxc5 {[%clk 0:02:31]} 12. Qe2 {[%clk 0:02:29]}  Nc6 {[%clk 0:02:26]} 13. O-O {[%clk 0:02:24]}  Bg4 {[%clk 0:02:26]} 14. Qe3 {[%clk 0:02:19]}  Nf6 {[%clk 0:02:07]} 15. a3 {[%clk 0:02:06]}  Re8 {[%clk 0:02:02]} 16. e5 {[%clk 0:01:58]}  Nd5 {[%clk 0:01:49]} 17. Qe4 {[%clk 0:01:58]}  g6 {[%clk 0:01:49]} 18. Bc4 {[%clk 0:01:57]}  Nb6 {[%clk 0:01:48]} 19. Ba2 {[%clk 0:01:51]}  Be6 {[%clk 0:01:35]} 20. Bxe6 {[%clk 0:01:46]}  Rxe6 {[%clk 0:01:36]} 21. Rac1 {[%clk 0:01:41]}  Qf8 {[%clk 0:01:17]} 22. Qe3 {[%clk 0:01:34]}  f6 {[%clk 0:00:51]} 23. Ne4 {[%clk 0:01:27]}  fxe5 {[%clk 0:00:51]} 24. Nxc5 {[%clk 0:01:27]}  Re7 {[%clk 0:00:51]} 25. Nxe5 {[%clk 0:01:22]}  Nxe5 {[%clk 0:00:43]} 26. fxe5 {[%clk 0:01:22]}  Qg7 {[%clk 0:00:43]} 27. Qb3+ {[%clk 0:00:56]}  Kh8 {[%clk 0:00:41]} 28. e6 {[%clk 0:00:52]}  Qd4+ {[%clk 0:00:39]} 29. Kg2 {[%clk 0:00:46]}  Qd5+ {[%clk 0:00:37]} 30. Qf3 {[%clk 0:00:43]}  Rc8 {[%clk 0:00:34]} 31. b4 {[%clk 0:00:37]}  Qxf3+ {[%clk 0:00:30]} 32. Rxf3 {[%clk 0:00:38]}  Nd5 {[%clk 0:00:29]} 33. Rd1 {[%clk 0:00:35]}  b6 {[%clk 0:00:16]} 34. Rxd5 {[%clk 0:00:24]}  bxc5 {[%clk 0:00:16]} 35. Rxc5 {[%clk 0:00:24]}  Rxc5 {[%clk 0:00:16]} 36. bxc5 {[%clk 0:00:25]}  Rxe6 {[%clk 0:00:16]} 37. Rc3 {[%clk 0:00:24]}  Rc6 {[%clk 0:00:14]} 38. Kf3 {[%clk 0:00:24]}  Kg7 {[%clk 0:00:15]} 39. Ke4 {[%clk 0:00:25]}  Kf7 {[%clk 0:00:15]} 40. Kd5 {[%clk 0:00:26]}  Rc8 {[%clk 0:00:14]} 41. c6 {[%clk 0:00:26]}  Ke7 {[%clk 0:00:14]} 42. Re3+ {[%clk 0:00:25]}  Kf6 {[%clk 0:00:09]} 43. Kd6 {[%clk 0:00:23]}  Rd8+ {[%clk 0:00:09]} 44. Kc5 {[%clk 0:00:24]}  Rd2 {[%clk 0:00:09]} 45. c7 {[%clk 0:00:21]}  Rc2+ {[%clk 0:00:08]} 46. Kd6 {[%clk 0:00:21]}  Rd2+ {[%clk 0:00:08]} 47. Kc6 {[%clk 0:00:21]}  Rc2+ {[%clk 0:00:09]} 48. Kb7 {[%clk 0:00:22]}  Rb2+ {[%clk 0:00:09]} 49. Kxa7 {[%clk 0:00:22]}  Rc2 {[%clk 0:00:10]} 50. Kb7 {[%clk 0:00:22]}  Rb2+ {[%clk 0:00:10]} 51. Kc6 {[%clk 0:00:21]}  Rc2+ {[%clk 0:00:10]} 52. Kd7 {[%clk 0:00:22]}  Rd2+ {[%clk 0:00:10]} 53. Kc8 {[%clk 0:00:22]}  Rxh2 {[%clk 0:00:10]} 54. Rb3 {[%clk 0:00:21]}  h5 {[%clk 0:00:08]} 55. Kb7 {[%clk 0:00:21]}  Rc2 {[%clk 0:00:09]} 56. c8=Q {[%clk 0:00:21]}  Rxc8 {[%clk 0:00:09]} 57. Kxc8 {[%clk 0:00:22]}  g5 {[%clk 0:00:10]} 58. a4 {[%clk 0:00:22]}  h4 {[%clk 0:00:09]} 59. gxh4 {[%clk 0:00:23]}  gxh4 {[%clk 0:00:10]} 60. a5 {[%clk 0:00:24]} 1-0


[Site "https://www.chess.com"]

[Event "Titled Tuesday Blitz January 25 2022"]
[White "Iskusnyh, Sergei"]
[Black "Jaracz, Pawel"]
[WhiteFideId "4120027"]
[BlackFideId "1102222"]
[WhiteElo "2492"]
[BlackElo "2429"]
[Result "0-1"]
[Round "09"]
[TimeControl "180+1"]
[Date "2022.01.26"]
[WhiteClock "0:00:05"]
[BlackClock "0:00:32"]

1. d4 {[%clk 0:03:00]}  Nf6 {[%clk 0:02:58]} 2. c4 {[%clk 0:03:00]}  e6 {[%clk 0:02:59]} 3. g3 {[%clk 0:03:00]}  b6 {[%clk 0:02:56]} 4. Bg2 {[%clk 0:03:00]}  c6 {[%clk 0:02:56]} 5. Nf3 {[%clk 0:02:59]}  d5 {[%clk 0:02:56]} 6. O-O {[%clk 0:02:57]}  Be7 {[%clk 0:02:56]} 7. Nc3 {[%clk 0:02:56]}  O-O {[%clk 0:02:54]} 8. Ne5 {[%clk 0:02:44]}  Bb7 {[%clk 0:02:45]} 9. Qa4 {[%clk 0:02:39]}  Nfd7 {[%clk 0:02:44]} 10. Nf3 {[%clk 0:02:28]}  a6 {[%clk 0:02:35]} 11. cxd5 {[%clk 0:02:21]}  cxd5 {[%clk 0:02:32]} 12. Bf4 {[%clk 0:01:52]}  Nc6 {[%clk 0:02:32]} 13. Rfc1 {[%clk 0:01:49]}  b5 {[%clk 0:02:27]} 14. Qd1 {[%clk 0:01:48]}  Nb6 {[%clk 0:02:27]} 15. a4 {[%clk 0:01:17]}  b4 {[%clk 0:02:12]} 16. Nb1 {[%clk 0:01:17]}  Rc8 {[%clk 0:02:08]} 17. Nbd2 {[%clk 0:01:09]}  Na5 {[%clk 0:01:58]} 18. h4 {[%clk 0:00:54]}  Nbc4 {[%clk 0:01:51]} 19. b3 {[%clk 0:00:46]}  Nd6 {[%clk 0:01:42]} 20. Ne5 {[%clk 0:00:39]}  f6 {[%clk 0:01:35]} 21. Nd3 {[%clk 0:00:38]}  Ne4 {[%clk 0:01:30]} 22. Nxe4 {[%clk 0:00:34]}  dxe4 {[%clk 0:01:30]} 23. Ne1 {[%clk 0:00:26]}  Qd5 {[%clk 0:01:28]} 24. Rxc8 {[%clk 0:00:19]}  Rxc8 {[%clk 0:01:27]} 25. Rb1 {[%clk 0:00:20]}  Rc3 {[%clk 0:01:26]} 26. Nc2 {[%clk 0:00:14]}  Rxb3 {[%clk 0:01:20]} 27. Ne3 {[%clk 0:00:14]}  Rxb1 {[%clk 0:01:19]} 28. Qxb1 {[%clk 0:00:15]}  Qb3 {[%clk 0:01:19]} 29. Qc1 {[%clk 0:00:14]}  Qc3 {[%clk 0:01:16]} 30. Qd1 {[%clk 0:00:13]}  b3 {[%clk 0:01:16]} 31. d5 {[%clk 0:00:12]}  b2 {[%clk 0:01:03]} 32. Kh2 {[%clk 0:00:07]}  e5 {[%clk 0:00:49]} 33. Nf5 {[%clk 0:00:06]}  Bb4 {[%clk 0:00:44]} 34. d6 {[%clk 0:00:05]}  Qb3 {[%clk 0:00:32]} 35. d7 {[%clk 0:00:05]}  Qxd1 {[%clk 0:00:32]} 0-1


[Site "https://www.chess.com"]

[Event "Titled Tuesday Blitz January 25 2022"]
[White "Janaszak, Dawid"]
[Black "Samadov, Read"]
[WhiteFideId "1119206"]
[BlackFideId "13417444"]
[WhiteElo "2199"]
[BlackElo "2084"]
[Result "0-1"]
[Round "09"]
[TimeControl "180+1"]
[Date "2022.01.26"]
[WhiteClock "0:00:13"]
[BlackClock "0:00:05"]

1. e4 {[%clk 0:03:00]}  c5 {[%clk 0:03:00]} 2. Nc3 {[%clk 0:03:00]}  d6 {[%clk 0:03:00]} 3. f4 {[%clk 0:02:58]}  g6 {[%clk 0:03:00]} 4. Nf3 {[%clk 0:02:58]}  Bg7 {[%clk 0:03:01]} 5. Bc4 {[%clk 0:02:57]}  Nc6 {[%clk 0:03:01]} 6. O-O {[%clk 0:02:57]}  e6 {[%clk 0:02:59]} 7. d4 {[%clk 0:02:57]}  cxd4 {[%clk 0:02:52]} 8. Nb5 {[%clk 0:02:57]}  Nge7 {[%clk 0:02:52]} 9. Bb3 {[%clk 0:02:57]}  O-O {[%clk 0:02:46]} 10. Nbxd4 {[%clk 0:02:56]}  Nxd4 {[%clk 0:02:29]} 11. Nxd4 {[%clk 0:02:57]}  Bd7 {[%clk 0:02:22]} 12. Be3 {[%clk 0:02:51]}  Rc8 {[%clk 0:02:16]} 13. c3 {[%clk 0:02:47]}  a6 {[%clk 0:02:11]} 14. Qe1 {[%clk 0:02:46]}  b5 {[%clk 0:02:09]} 15. Rd1 {[%clk 0:02:44]}  Qc7 {[%clk 0:02:06]} 16. f5 {[%clk 0:02:38]}  exf5 {[%clk 0:01:55]} 17. Qh4 {[%clk 0:02:35]}  Rce8 {[%clk 0:01:41]} 18. Bh6 {[%clk 0:02:11]}  Bxh6 {[%clk 0:01:26]} 19. Qxh6 {[%clk 0:02:12]}  Qc5 {[%clk 0:01:25]} 20. Kh1 {[%clk 0:01:52]}  Qe5 {[%clk 0:01:08]} 21. Nf3 {[%clk 0:01:39]}  Qg7 {[%clk 0:01:05]} 22. Qxg7+ {[%clk 0:01:38]}  Kxg7 {[%clk 0:01:06]} 23. Rxd6 {[%clk 0:01:38]}  Bc8 {[%clk 0:01:03]} 24. e5 {[%clk 0:01:36]}  f4 {[%clk 0:00:57]} 25. e6 {[%clk 0:01:21]}  Nf5 {[%clk 0:00:46]} 26. exf7 {[%clk 0:01:17]}  Nxd6 {[%clk 0:00:46]} 27. fxe8=Q {[%clk 0:01:16]}  Rxe8 {[%clk 0:00:47]} 28. Nd4 {[%clk 0:01:15]}  g5 {[%clk 0:00:46]} 29. Kg1 {[%clk 0:01:12]}  h6 {[%clk 0:00:38]} 30. Rd1 {[%clk 0:01:11]}  Kf6 {[%clk 0:00:34]} 31. Nc6 {[%clk 0:01:08]}  Nf5 {[%clk 0:00:32]} 32. Kf2 {[%clk 0:01:03]}  Bb7 {[%clk 0:00:28]} 33. Na5 {[%clk 0:00:53]}  Ba8 {[%clk 0:00:28]} 34. Rd7 {[%clk 0:00:51]}  g4 {[%clk 0:00:25]} 35. g3 {[%clk 0:00:37]}  f3 {[%clk 0:00:21]} 36. Rd2 {[%clk 0:00:32]}  h5 {[%clk 0:00:21]} 37. c4 {[%clk 0:00:31]}  h4 {[%clk 0:00:20]} 38. c5 {[%clk 0:00:30]}  hxg3+ {[%clk 0:00:20]} 39. hxg3 {[%clk 0:00:30]}  Rh8 {[%clk 0:00:16]} 40. c6 {[%clk 0:00:30]}  Rh2+ {[%clk 0:00:15]} 41. Ke1 {[%clk 0:00:31]}  Rh1+ {[%clk 0:00:12]} 42. Kf2 {[%clk 0:00:31]}  Rh2+ {[%clk 0:00:13]} 43. Ke1 {[%clk 0:00:32]}  Rxd2 {[%clk 0:00:07]} 44. Kxd2 {[%clk 0:00:33]}  Ne7 {[%clk 0:00:04]} 45. c7 {[%clk 0:00:28]}  Ke5 {[%clk 0:00:05]} 46. Bc2 {[%clk 0:00:22]}  Kd6 {[%clk 0:00:05]} 47. Bf5 {[%clk 0:00:22]}  Kxc7 {[%clk 0:00:03]} 48. Bxg4 {[%clk 0:00:22]}  Ng6 {[%clk 0:00:02]} 49. Ke3 {[%clk 0:00:19]}  Ne5 {[%clk 0:00:02]} 50. Bh3 {[%clk 0:00:19]}  Bd5 {[%clk 0:00:03]} 51. Nb3 {[%clk 0:00:16]}  Nc4+ {[%clk 0:00:02]} 52. Kd4 {[%clk 0:00:16]}  Kd6 {[%clk 0:00:03]} 53. Nc5 {[%clk 0:00:15]}  Nxb2 {[%clk 0:00:03]} 54. Nxa6 {[%clk 0:00:14]}  Bxa2 {[%clk 0:00:03]} 55. Ke3 {[%clk 0:00:14]}  Bd5 {[%clk 0:00:03]} 56. Nb4 {[%clk 0:00:14]}  Nc4+ {[%clk 0:00:03]} 57. Kf2 {[%clk 0:00:14]}  Be4 {[%clk 0:00:03]} 58. Bg4 {[%clk 0:00:14]}  Kc5 {[%clk 0:00:04]} 59. Na6+ {[%clk 0:00:14]}  Kb6 {[%clk 0:00:04]} 60. Nb4 {[%clk 0:00:15]}  Ne5 {[%clk 0:00:05]} 61. Be6 {[%clk 0:00:13]}  Ka5 {[%clk 0:00:05]} 62. Nc2 {[%clk 0:00:13]}  Bxc2 {[%clk 0:00:04]} 63. Ke3 {[%clk 0:00:12]}  b4 {[%clk 0:00:05]} 64. Kd4 {[%clk 0:00:13]}  f2 {[%clk 0:00:05]} 0-1


[Site "https://www.chess.com"]

[Event "Titled Tuesday Blitz January 25 2022"]
[White "Jobava, Baadur"]
[Black "Nakamura, Hikaru"]
[WhiteFideId "13601520"]
[BlackFideId "2016192"]
[WhiteElo "2617"]
[BlackElo "2850"]
[Result "0-1"]
[Round "09"]
[TimeControl "180+1"]
[Date "2022.01.26"]
[WhiteClock "0:00:02"]
[BlackClock "0:00:10"]

1. e4 {[%clk 0:03:00]}  d5 {[%clk 0:02:58]} 2. exd5 {[%clk 0:03:01]}  Qxd5 {[%clk 0:02:58]} 3. Nc3 {[%clk 0:03:01]}  Qa5 {[%clk 0:02:57]} 4. d4 {[%clk 0:03:01]}  Nf6 {[%clk 0:02:57]} 5. Bd3 {[%clk 0:02:59]}  c6 {[%clk 0:02:55]} 6. Nf3 {[%clk 0:02:58]}  Bf5 {[%clk 0:02:48]} 7. O-O {[%clk 0:02:53]}  Bxd3 {[%clk 0:02:48]} 8. Qxd3 {[%clk 0:02:52]}  e6 {[%clk 0:02:48]} 9. Re1 {[%clk 0:02:49]}  Bb4 {[%clk 0:02:34]} 10. Bd2 {[%clk 0:02:40]}  O-O {[%clk 0:02:32]} 11. Ne5 {[%clk 0:02:36]}  Nbd7 {[%clk 0:02:27]} 12. Qg3 {[%clk 0:02:26]}  Rfe8 {[%clk 0:01:33]} 13. h3 {[%clk 0:02:10]}  Rad8 {[%clk 0:01:20]} 14. a3 {[%clk 0:01:54]}  Bxc3 {[%clk 0:01:19]} 15. Bxc3 {[%clk 0:01:55]}  Qd5 {[%clk 0:01:19]} 16. Qf4 {[%clk 0:01:36]}  Nb6 {[%clk 0:01:09]} 17. b3 {[%clk 0:01:32]}  c5 {[%clk 0:00:53]} 18. dxc5 {[%clk 0:00:50]}  Qxc5 {[%clk 0:00:54]} 19. Qg3 {[%clk 0:00:46]}  Nbd5 {[%clk 0:00:49]} 20. Bd2 {[%clk 0:00:38]}  Qxc2 {[%clk 0:00:44]} 21. Bh6 {[%clk 0:00:37]}  Nh5 {[%clk 0:00:42]} 22. Qf3 {[%clk 0:00:32]}  Qf5 {[%clk 0:00:36]} 23. Qxf5 {[%clk 0:00:31]}  exf5 {[%clk 0:00:36]} 24. Bd2 {[%clk 0:00:32]}  Nhf6 {[%clk 0:00:35]} 25. f3 {[%clk 0:00:28]}  h6 {[%clk 0:00:30]} 26. Rad1 {[%clk 0:00:27]}  Nb6 {[%clk 0:00:28]} 27. Bc3 {[%clk 0:00:25]}  Rxd1 {[%clk 0:00:27]} 28. Rxd1 {[%clk 0:00:26]}  Nfd5 {[%clk 0:00:28]} 29. Bd4 {[%clk 0:00:25]}  Rc8 {[%clk 0:00:25]} 30. Rd2 {[%clk 0:00:21]}  f4 {[%clk 0:00:19]} 31. Kf2 {[%clk 0:00:21]}  Nf6 {[%clk 0:00:19]} 32. Nd3 {[%clk 0:00:20]}  Nbd5 {[%clk 0:00:19]} 33. Bxa7 {[%clk 0:00:19]}  b6 {[%clk 0:00:19]} 34. Nb4 {[%clk 0:00:19]}  Nxb4 {[%clk 0:00:16]} 35. axb4 {[%clk 0:00:20]}  Rc6 {[%clk 0:00:16]} 36. b5 {[%clk 0:00:20]}  Rc5 {[%clk 0:00:16]} 37. Bxb6 {[%clk 0:00:20]}  Rxb5 {[%clk 0:00:17]} 38. Bd4 {[%clk 0:00:19]}  Nd5 {[%clk 0:00:15]} 39. Rd3 {[%clk 0:00:15]}  Ra5 {[%clk 0:00:14]} 40. Rd2 {[%clk 0:00:15]}  Rb5 {[%clk 0:00:15]} 41. Rd3 {[%clk 0:00:15]}  f6 {[%clk 0:00:15]} 42. Ke1 {[%clk 0:00:14]}  Kf7 {[%clk 0:00:16]} 43. Kd2 {[%clk 0:00:14]}  Ke6 {[%clk 0:00:16]} 44. Kc1 {[%clk 0:00:13]}  Nb4 {[%clk 0:00:16]} 45. Rd2 {[%clk 0:00:13]}  Nc6 {[%clk 0:00:16]} 46. Kb2 {[%clk 0:00:12]}  Na5 {[%clk 0:00:16]} 47. Rd3 {[%clk 0:00:12]}  Rg5 {[%clk 0:00:14]} 48. Rd2 {[%clk 0:00:11]}  Rb5 {[%clk 0:00:14]} 49. Rd3 {[%clk 0:00:12]}  Nc6 {[%clk 0:00:14]} 50. Bc3 {[%clk 0:00:10]}  Ne7 {[%clk 0:00:12]} 51. Bd2 {[%clk 0:00:09]}  Rg5 {[%clk 0:00:12]} 52. g4 {[%clk 0:00:07]}  fxg3 {[%clk 0:00:08]} 53. Bxg5 {[%clk 0:00:07]}  hxg5 {[%clk 0:00:07]} 54. b4 {[%clk 0:00:07]}  Nd5 {[%clk 0:00:07]} 55. b5 {[%clk 0:00:07]}  Ke5 {[%clk 0:00:06]} 56. Rd2 {[%clk 0:00:07]}  Ne3 {[%clk 0:00:06]} 57. Kb3 {[%clk 0:00:06]}  g2 {[%clk 0:00:06]} 58. b6 {[%clk 0:00:02]}  g1=Q {[%clk 0:00:06]} 59. b7 {[%clk 0:00:02]}  Qb1+ {[%clk 0:00:04]} 60. Rb2 {[%clk 0:00:02]}  Qd3+ {[%clk 0:00:05]} 61. Ka2 {[%clk 0:00:03]}  Qd5+ {[%clk 0:00:03]} 62. Kb1 {[%clk 0:00:03]}  Qxf3 {[%clk 0:00:03]} 63. b8=Q+ {[%clk 0:00:03]}  Kf5 {[%clk 0:00:04]} 64. Qc8+ {[%clk 0:00:02]}  Kg6 {[%clk 0:00:05]} 65. Qe8+ {[%clk 0:00:02]}  Kh7 {[%clk 0:00:04]} 66. Qb5 {[%clk 0:00:01]}  Qxh3 {[%clk 0:00:03]} 67. Ka2 {[%clk 0:00:02]}  Qe6+ {[%clk 0:00:03]} 68. Kb1 {[%clk 0:00:02]}  Qe4+ {[%clk 0:00:03]} 69. Ka2 {[%clk 0:00:02]}  Nf5 {[%clk 0:00:04]} 70. Rh2+ {[%clk 0:00:02]}  Kg6 {[%clk 0:00:04]} 71. Qb3 {[%clk 0:00:02]}  Qa8+ {[%clk 0:00:04]} 72. Kb1 {[%clk 0:00:02]}  Qe8 {[%clk 0:00:05]} 73. Ka2 {[%clk 0:00:02]}  Qe5 {[%clk 0:00:05]} 74. Rb2 {[%clk 0:00:03]}  Nd4 {[%clk 0:00:05]} 75. Qb7 {[%clk 0:00:03]}  Qa5+ {[%clk 0:00:05]} 76. Kb1 {[%clk 0:00:03]}  Qe1+ {[%clk 0:00:06]} 77. Ka2 {[%clk 0:00:04]}  Qe6+ {[%clk 0:00:07]} 78. Kb1 {[%clk 0:00:04]}  g4 {[%clk 0:00:07]} 79. Rd2 {[%clk 0:00:03]}  Nf3 {[%clk 0:00:06]} 80. Rb2 {[%clk 0:00:03]}  Qe1+ {[%clk 0:00:06]} 81. Ka2 {[%clk 0:00:03]}  Qe6+ {[%clk 0:00:06]} 82. Kb1 {[%clk 0:00:03]}  Qf5+ {[%clk 0:00:07]} 83. Ka2 {[%clk 0:00:03]}  g3 {[%clk 0:00:08]} 84. Qb8 {[%clk 0:00:03]}  Qd5+ {[%clk 0:00:07]} 85. Ka3 {[%clk 0:00:03]}  Ne5 {[%clk 0:00:07]} 86. Qe8+ {[%clk 0:00:02]}  Kg5 {[%clk 0:00:08]} 87. Qh8 {[%clk 0:00:01]}  Nc4+ {[%clk 0:00:08]} 88. Kb4 {[%clk 0:00:01]}  Nxb2 {[%clk 0:00:08]} 89. Qxg7+ {[%clk 0:00:02]}  Kf5 {[%clk 0:00:09]} 90. Qxg3 {[%clk 0:00:02]}  Nd3+ {[%clk 0:00:10]} 91. Kc3 {[%clk 0:00:02]}  Nf4 {[%clk 0:00:10]} 0-1


[Site "https://www.chess.com"]

[Event "Titled Tuesday Blitz January 25 2022"]
[White "Karabalis, Harilos"]
[Black "Villegas, Pierre"]
[WhiteFideId "4621808"]
[BlackFideId "654183"]
[WhiteElo "2168"]
[BlackElo "2410"]
[Result "1/2-1/2"]
[Round "09"]
[TimeControl "180+1"]
[Date "2022.01.26"]
[WhiteClock "0:00:44"]
[BlackClock "0:00:48"]

1. e4 {[%clk 0:03:00]}  c6 {[%clk 0:03:00]} 2. d4 {[%clk 0:02:57]}  d5 {[%clk 0:03:00]} 3. e5 {[%clk 0:02:57]}  a6 {[%clk 0:03:00]} 4. Bd3 {[%clk 0:02:50]}  c5 {[%clk 0:02:57]} 5. c3 {[%clk 0:02:50]}  Nc6 {[%clk 0:02:56]} 6. Be3 {[%clk 0:02:49]}  Nh6 {[%clk 0:02:33]} 7. Nf3 {[%clk 0:02:27]}  Nf5 {[%clk 0:02:23]} 8. Bxf5 {[%clk 0:02:25]}  Bxf5 {[%clk 0:02:24]} 9. dxc5 {[%clk 0:02:25]}  Bg4 {[%clk 0:02:16]} 10. Bd4 {[%clk 0:02:24]}  e6 {[%clk 0:02:10]} 11. Nbd2 {[%clk 0:02:22]}  Be7 {[%clk 0:02:04]} 12. h3 {[%clk 0:02:22]}  Bh5 {[%clk 0:02:03]} 13. Qe2 {[%clk 0:02:19]}  b6 {[%clk 0:01:56]} 14. Qe3 {[%clk 0:02:12]}  Nxd4 {[%clk 0:01:50]} 15. cxd4 {[%clk 0:02:10]}  Bxf3 {[%clk 0:01:46]} 16. Nxf3 {[%clk 0:02:09]}  bxc5 {[%clk 0:01:46]} 17. dxc5 {[%clk 0:02:09]}  Qa5+ {[%clk 0:01:46]} 18. Qd2 {[%clk 0:01:56]}  Qxd2+ {[%clk 0:01:45]} 19. Kxd2 {[%clk 0:01:56]}  Bxc5 {[%clk 0:01:46]} 20. Rhf1 {[%clk 0:01:53]}  Rb8 {[%clk 0:01:43]} 21. b3 {[%clk 0:01:52]}  Kd7 {[%clk 0:01:34]} 22. Rac1 {[%clk 0:01:51]}  Rhc8 {[%clk 0:01:34]} 23. Kd3 {[%clk 0:01:40]}  f6 {[%clk 0:01:28]} 24. Rc2 {[%clk 0:01:33]}  Ba7 {[%clk 0:01:28]} 25. Re2 {[%clk 0:01:26]}  Rc6 {[%clk 0:01:22]} 26. Rfe1 {[%clk 0:01:12]}  Rbc8 {[%clk 0:01:20]} 27. exf6 {[%clk 0:01:11]}  gxf6 {[%clk 0:01:12]} 28. Rd2 {[%clk 0:01:11]}  Rc3+ {[%clk 0:01:02]} 29. Ke2 {[%clk 0:01:11]}  Rc2 {[%clk 0:01:03]} 30. Rd1 {[%clk 0:01:11]}  Kd6 {[%clk 0:01:00]} 31. Ne1 {[%clk 0:01:08]}  Rxd2+ {[%clk 0:01:00]} 32. Rxd2 {[%clk 0:01:08]}  e5 {[%clk 0:00:59]} 33. f3 {[%clk 0:01:01]}  h5 {[%clk 0:00:58]} 34. g4 {[%clk 0:01:00]}  hxg4 {[%clk 0:00:57]} 35. hxg4 {[%clk 0:01:01]}  Rh8 {[%clk 0:00:57]} 36. Rc2 {[%clk 0:01:01]}  Rh2+ {[%clk 0:00:55]} 37. Kd3 {[%clk 0:01:00]}  Rxc2 {[%clk 0:00:50]} 38. Nxc2 {[%clk 0:00:54]}  Ke6 {[%clk 0:00:49]} 39. b4 {[%clk 0:00:48]}  f5 {[%clk 0:00:49]} 40. gxf5+ {[%clk 0:00:47]}  Kxf5 {[%clk 0:00:50]} 41. a4 {[%clk 0:00:48]}  e4+ {[%clk 0:00:51]} 42. fxe4+ {[%clk 0:00:47]}  dxe4+ {[%clk 0:00:51]} 43. Kc4 {[%clk 0:00:47]}  e3 {[%clk 0:00:49]} 44. Nxe3+ {[%clk 0:00:43]}  Bxe3 {[%clk 0:00:50]} 45. a5 {[%clk 0:00:43]}  Bd2 {[%clk 0:00:46]} 46. b5 {[%clk 0:00:43]}  axb5+ {[%clk 0:00:47]} 47. Kxb5 {[%clk 0:00:44]}  Bxa5 {[%clk 0:00:48]} 1/2-1/2


[Site "https://www.chess.com"]